fUST/lending_fUST_20250611
["ID","MTS","AMOUNT","RATE_DAILY","PERIOD"]
[365298946,1749586239686,-460.0,0.00021369,4]
[365298947,1749586239695,-460.0,0.00021369,4]
[365298948,1749586239705,-460.0,0.00021369,4]
[365298949,1749586239714,-348.68155314,0.00021369,4]
[365298950,1749586239723,-256.38323503,0.00021369,4]
[365298951,1749586239732,-460.0,0.00021369,4]
[365298952,1749586239741,-460.0,0.00021369,4]
[365298953,1749586239751,-460.0,0.00021369,4]
[365298954,1749586239760,-460.0,0.00021369,4]
[365298955,1749586239769,-460.0,0.00021369,4]
[365298956,1749586239778,-460.0,0.00021369,4]
[365298957,1749586239788,-2426.17,0.00021369,4]
[365298958,1749586239797,-484.48,0.00021369,4]
[365298959,1749586239807,-460.0,0.00021369,4]
[365298961,1749586239816,-460.0,0.00021369,4]
[365298962,1749586239826,-1568.49,0.00021369,4]
[365298963,1749586239835,-460.0,0.00021369,4]
[365298964,1749586239844,-460.0,0.00021369,4]
[365298965,1749586239854,-460.0,0.00021369,4]
[365298966,1749586239863,-460.0,0.00021369,4]
[365298967,1749586239873,-205.63563806,0.00021369,4]
[365298968,1749586239882,-726.64,0.00021369,4]
[365298969,1749586239891,-460.0,0.00021369,4]
[365298970,1749586239901,-1468.13,0.00021369,4]
[365298971,1749586239911,-460.0,0.00021369,4]
[365298972,1749586239920,-460.0,0.00021369,4]
[365298974,1749586239930,-598.13,0.00021369,4]
[365298976,1749586239940,-460.0,0.00021369,4]
[365298977,1749586239949,-460.0,0.00021369,4]
[365298978,1749586239958,-460.0,0.00021369,4]
[365298979,1749586239967,-476.44314004,0.00021369,4]
[365298980,1749586239977,-448.21050814,0.00021373,2]
[365298981,1749586239986,-509.09618622,0.00021373,2]
[365298982,1749586240001,-500.0,0.00021373,2]
[365298983,1749586240014,-502.03517044,0.00021373,2]
[365298984,1749586240023,-500.0,0.00021373,2]
[365298985,1749586240033,-500.0,0.00021373,2]
[365298986,1749586240042,-500.0,0.00021373,2]
[365298987,1749586240051,-500.0,0.00021396,4]
[365298988,1749586240060,-500.0,0.00021396,4]
[365298989,1749586240070,-500.0,0.00021396,4]
[365298990,1749586240080,-1295.51,0.000214,2]
[365298991,1749586240090,-500.0,0.00021424,4]
[365298992,1749586240099,-500.0,0.00021424,4]
[365298993,1749586240109,-162.0,0.00021424,4]
[365298994,1749586240119,-500.0,0.00021451,4]
[365298995,1749586240129,-500.0,0.00021479,4]
[365298996,1749586240246,-500.0,0.00021506,4]
[365298997,1749586240263,-500.0,0.00021533,4]
[365298998,1749586240273,-531.27793115,0.00021561,4]
[365298999,1749586240283,-500.0,0.00021621,2]
[365299000,1749586240293,-372.80914832,0.00021621,2]
[365299001,1749586240302,-1000.0,0.00021621,2]
[365299002,1749586240311,-1003.32066576,0.00021621,2]
[365299003,1749586240321,-500.0,0.00021621,2]
[365299004,1749586240331,-535.00691686,0.00021643,4]
[365299006,1749586240340,-340.0,0.00021643,4]
[365299007,1749586240349,-228.91941051,0.00021643,4]
[365299008,1749586240358,-227.77189891,0.00021643,4]
[365299009,1749586240367,-460.0,0.00021643,4]
[365299010,1749586240376,-460.0,0.00021643,4]
[365299011,1749586240386,-400.0,0.00021643,4]
[365299012,1749586240395,-460.0,0.00021643,4]
[365299013,1749586240404,-460.0,0.00021643,4]
[365299014,1749586240414,-460.0,0.00021643,4]
[365299015,1749586240424,-440.0,0.00021643,4]
[365299016,1749586240434,-460.0,0.00021643,4]
[365299018,1749586240444,-460.0,0.00021643,4]
[365299020,1749586240454,-542.15,0.00021643,4]
[365299022,1749586240463,-210.0,0.00021643,4]
[365299023,1749586240473,-460.0,0.00021643,4]
[365299024,1749586240482,-460.0,0.00021643,4]
[365299025,1749586240491,-460.0,0.00021643,4]
[365299026,1749586240501,-494.04713032,0.00021643,4]
[365299027,1749586240510,-460.0,0.00021643,4]
[365299028,1749586240519,-460.0,0.00021643,4]
[365299029,1749586240528,-460.0,0.00021643,4]
[365299030,1749586240537,-376.6216569,0.00021643,4]
[365299031,1749586240546,-460.0,0.00021643,4]
[365299032,1749586240555,-460.0,0.00021643,4]
[365299033,1749586240564,-460.0,0.00021643,4]
[365299034,1749586240573,-460.0,0.00021643,4]
[365299035,1749586240585,-460.0,0.00021643,4]
[365299036,1749586240598,-460.0,0.00021643,4]
[365299037,1749586240607,-460.0,0.00021643,4]
[365299038,1749586240617,-460.0,0.00021643,4]
[365299040,1749586240626,-460.0,0.00021643,4]
[365299041,1749586240636,-400.0,0.00021643,4]
[365299042,1749586240648,-460.0,0.00021643,4]
[365299043,1749586240658,-436.98738653,0.00021643,4]
[365299044,1749586240667,-460.0,0.00021643,4]
[365299045,1749586240676,-460.0,0.00021643,4]
[365299046,1749586240685,-460.0,0.00021643,4]
[365299047,1749586240695,-470.34076166,0.00021643,4]
[365299048,1749586240704,-335.81428976,0.00021643,4]
[365299049,1749586240713,-460.0,0.00021643,4]
[365299050,1749586240723,-420.0,0.00021643,4]
[365299051,1749586240732,-745.95,0.00021643,4]
[365299052,1749586240741,-260.0,0.00021643,4]
[365299053,1749586240750,-460.0,0.00021643,4]
[365299054,1749586240760,-460.0,0.00021643,4]
[365299055,1749586240769,-460.0,0.00021643,4]
[365299056,1749586240779,-250.0,0.00021643,4]
[365299057,1749586240788,-460.0,0.00021643,4]
[365299058,1749586240797,-460.0,0.00021643,4]
[365299059,1749586240806,-460.0,0.00021643,4]
[365299060,1749586240815,-460.0,0.00021643,4]
[365299061,1749586240824,-380.0,0.00021643,4]
[365299062,1749586240834,-460.0,0.00021643,4]
[365299063,1749586240843,-460.0,0.00021643,4]
[365299064,1749586240853,-460.0,0.00021643,4]
[365299065,1749586240862,-460.0,0.00021643,4]
[365299066,1749586240872,-400.0,0.00021643,4]
[365299067,1749586240881,-460.0,0.00021643,4]
[365299068,1749586240890,-546.92,0.00021643,4]
[365299069,1749586240903,-460.0,0.00021643,4]
[365299070,1749586240912,-460.0,0.00021643,4]
[365299071,1749586240922,-460.0,0.00021643,4]
[365299072,1749586240931,-606.89,0.00021643,4]
[365299073,1749586240941,-460.0,0.00021643,4]
[365299074,1749586240950,-374.3561871,0.00021643,4]
[365299075,1749586240960,-460.0,0.00021643,4]
[365299076,1749586240969,-460.0,0.00021643,4]
[365299077,1749586240978,-400.0,0.00021643,4]
[365299078,1749586240988,-460.0,0.00021643,4]
[365299079,1749586240997,-460.0,0.00021643,4]
[365299080,1749586241006,-460.0,0.00021643,4]
[365299081,1749586241015,-460.0,0.00021643,4]
[365299082,1749586241024,-460.0,0.00021643,4]
[365299083,1749586241033,-460.0,0.00021643,4]
[365299084,1749586241043,-229.18929194,0.00021643,4]
[365299085,1749586241054,-460.0,0.00021643,4]
[365299086,1749586241064,-460.0,0.00021643,4]
[365299087,1749586241073,-420.0,0.00021643,4]
[365299088,1749586241083,-653.4,0.00021643,4]
[365299089,1749586241092,-460.0,0.00021643,4]
[365299090,1749586241101,-460.0,0.00021643,4]
[365299091,1749586241111,-420.0,0.00021643,4]
[365299092,1749586241120,-460.0,0.00021643,4]
[365299093,1749586241130,-495.26,0.00021643,4]
[365299095,1749586241140,-460.0,0.00021643,4]
[365299097,1749586241151,-460.0,0.00021643,4]
[365299098,1749586241162,-460.0,0.00021643,4]
[365299099,1749586241172,-460.0,0.00021643,4]
[365299101,1749586241181,-460.0,0.00021643,4]
[365299103,1749586241191,-460.0,0.00021643,4]
[365299105,1749586241200,-460.0,0.00021643,4]
[365299107,1749586241209,-460.0,0.00021643,4]
[365299109,1749586241219,-272.29,0.00021643,4]
[365299111,1749586241228,-2237.41,0.00021643,4]
[365299112,1749586241238,-460.0,0.00021643,4]
[365299113,1749586241247,-460.0,0.00021643,4]
[365299114,1749586241256,-578.73,0.00021643,4]
[365299115,1749586241265,-460.0,0.00021643,4]
[365299116,1749586241275,-460.0,0.00021643,4]
[365299117,1749586241284,-176.06,0.00021643,4]
[365299118,1749586241294,-460.0,0.00021643,4]
[365299119,1749586241304,-460.0,0.00021643,4]
[365299120,1749586241314,-460.0,0.00021643,4]
[365299121,1749586241323,-460.0,0.00021643,4]
[365299122,1749586241333,-460.0,0.00021643,4]
[365299123,1749586241343,-290.0,0.00021643,4]
[365299124,1749586241352,-460.0,0.00021643,4]
[365299125,1749586241362,-549.19,0.00021643,4]
[365299126,1749586241371,-460.0,0.00021643,4]
[365299127,1749586241381,-489.09292648,0.00021643,4]
[365299128,1749586241391,-460.0,0.00021643,4]
[365299129,1749586241404,-460.0,0.00021643,4]
[365299130,1749586241413,-555.45,0.00021643,4]
[365299131,1749586241422,-460.0,0.00021643,4]
[365299132,1749586241432,-460.0,0.00021643,4]
[365299133,1749586241441,-460.0,0.00021643,4]
[365299134,1749586241451,-460.0,0.00021643,2]
[365299135,1749586241461,-2456.03,0.00021643,4]
[365299136,1749586241471,-460.0,0.00021643,4]
[365299137,1749586241481,-460.0,0.00021643,4]
[365299138,1749586241491,-460.0,0.00021643,4]
[365299139,1749586241501,-460.0,0.00021643,4]
[365299140,1749586241511,-420.0,0.00021643,4]
[365299141,1749586241520,-460.0,0.00021643,4]
[365299142,1749586241529,-592.42,0.00021643,4]
[365299143,1749586241539,-340.0,0.00021643,4]
[365299144,1749586241548,-2737.32,0.00021643,4]
[365299145,1749586241557,-460.0,0.00021643,4]
[365299146,1749586241567,-1837.72,0.00021643,4]
[365299147,1749586241579,-460.0,0.00021643,4]
[365299148,1749586241588,-1958.56,0.00021643,4]
[365299149,1749586241598,-460.0,0.00021643,4]
[365299150,1749586241607,-2244.78,0.00021643,4]
[365299151,1749586241616,-460.0,0.00021643,4]
[365299152,1749586241626,-460.0,0.00021643,4]
[365299153,1749586241636,-460.0,0.00021643,4]
[365299154,1749586241646,-460.0,0.00021643,4]
[365299155,1749586241658,-460.0,0.00021643,4]
[365299156,1749586241667,-460.0,0.00021643,4]
[365299157,1749586241681,-460.0,0.00021643,4]
[365299158,1749586241691,-460.0,0.00021643,4]
[365299159,1749586241701,-322.7260579,0.00021643,4]
[365299160,1749586241711,-2426.17,0.00021643,4]
[365299161,1749586241720,-460.0,0.00021643,4]
[365299162,1749586241730,-460.0,0.00021643,4]
[365299163,1749586241739,-1568.49,0.00021643,4]
[365299164,1749586241748,-250.0,0.00021643,4]
[365299165,1749586241758,-460.0,0.00021643,4]
[365299166,1749586241767,-460.0,0.00021643,4]
[365299167,1749586241776,-460.0,0.00021643,4]
[365299168,1749586241786,-726.64,0.00021643,4]
[365299169,1749586241795,-460.0,0.00021643,4]
[365299170,1749586241805,-1468.13,0.00021643,4]
[365299171,1749586241817,-460.0,0.00021643,4]
[365299172,1749586241826,-260.89141003,0.00021643,4]
[365299173,1749586241835,-598.13,0.00021643,4]
[365299174,1749586241844,-460.0,0.00021643,4]
[365299175,1749586241853,-460.0,0.00021643,4]
[365299176,1749586241863,-460.0,0.00021643,4]
[365299177,1749586241872,-500.0,0.00021673,2]
[365299178,1749586241959,-500.0,0.00021673,2]
[365299179,1749586241968,-500.0,0.00021673,2]
[365299180,1749586241977,-1010.09,0.00021767,2]
[365299181,1749586241987,-420.0,0.00021821,2]
[365299182,1749586241996,-420.0,0.00021821,2]
[365299183,1749586242006,-420.0,0.00021821,2]
[365299184,1749586242015,-3550.011596,0.000219,6]
[365299185,1749586242025,-460.0,0.00021917,4]
[365299186,1749586242034,-460.0,0.00021917,4]
[365299187,1749586242044,-460.0,0.00021917,4]
[365299188,1749586242053,-460.0,0.00021917,4]
[365299189,1749586242063,-460.0,0.00021917,4]
[365299190,1749586242072,-190.0,0.00021917,4]
[365299191,1749586242082,-400.0,0.00021917,4]
[365299192,1749586242091,-460.0,0.00021917,4]
[365299193,1749586242102,-602.43,0.00021917,4]
[365299194,1749586242111,-460.0,0.00021917,4]
[365299195,1749586242120,-380.0,0.00021917,4]
[365299196,1749586242130,-460.0,0.00021917,4]
[365299197,1749586242140,-460.0,0.00021917,4]
[365299198,1749586242152,-460.0,0.00021917,4]
[365299199,1749586242163,-460.0,0.00021917,4]
[365299200,1749586242172,-461.26777517,0.00021917,4]
[365299201,1749586242181,-460.0,0.00021917,4]
[365299202,1749586242190,-460.0,0.00021917,4]
[365299203,1749586242199,-460.0,0.00021917,4]
[365299204,1749586242209,-460.0,0.00021917,4]
[365299205,1749586242218,-460.0,0.00021917,4]
[365299206,1749586242228,-460.0,0.00021917,4]
[365299207,1749586242238,-460.0,0.00021917,4]
[365299208,1749586242247,-500.0,0.00021917,2]
[365299209,1749586242256,-460.0,0.00021917,4]
[365299210,1749586242266,-460.0,0.00021917,4]
[365299211,1749586242275,-460.0,0.00021917,4]
[365299212,1749586242285,-460.0,0.00021917,4]
[365299213,1749586242295,-745.95,0.00021917,4]
[365299214,1749586242305,-460.0,0.00021917,4]
[365299215,1749586242315,-460.0,0.00021917,4]
[365299216,1749586242324,-460.0,0.00021917,4]
[365299217,1749586242334,-460.0,0.00021917,4]
[365299218,1749586242343,-460.0,0.00021917,4]
[365299219,1749586242353,-460.0,0.00021917,4]
[365299220,1749586242362,-460.0,0.00021917,4]
[365299221,1749586242371,-460.0,0.00021917,4]
[365299222,1749586242381,-450.0,0.00021917,4]
[365299223,1749586242390,-240.0,0.00021917,4]
[365299224,1749586242403,-460.0,0.00021917,4]
[365299225,1749586242412,-380.0,0.00021917,4]
[365299226,1749586242421,-546.92,0.00021917,4]
[365299227,1749586242431,-460.0,0.00021917,4]
[365299228,1749586242440,-460.0,0.00021917,4]
[365299229,1749586242449,-460.0,0.00021917,4]
[365299230,1749586242458,-606.89,0.00021917,4]
[365299231,1749586242470,-460.0,0.00021917,4]
[365299232,1749586242483,-460.0,0.00021917,4]
[365299233,1749586242492,-460.0,0.00021917,4]
[365299234,1749586242501,-460.0,0.00021917,4]
[365299235,1749586242510,-460.0,0.00021917,4]
[365299236,1749586242520,-460.0,0.00021917,4]
[365299237,1749586242529,-300.95216294,0.00021917,4]
[365299238,1749586242539,-460.0,0.00021917,4]
[365299239,1749586242548,-460.0,0.00021917,4]
[365299240,1749586242557,-460.0,0.00021917,4]
[365299241,1749586242567,-460.0,0.00021917,4]
[365299242,1749586242577,-653.4,0.00021917,4]
[365299243,1749586242588,-460.0,0.00021917,4]
[365299244,1749586242597,-460.0,0.00021917,4]
[365299245,1749586242606,-460.0,0.00021917,4]
[365299246,1749586242616,-495.26,0.00021917,4]
[365299247,1749586242626,-460.0,0.00021917,4]
[365299248,1749586242636,-310.0,0.00021917,4]
[365299249,1749586242647,-460.0,0.00021917,4]
[365299250,1749586242659,-460.0,0.00021917,4]
[365299251,1749586242667,-460.0,0.00021917,4]
[365299252,1749586242677,-460.0,0.00021917,4]
[365299253,1749586242687,-460.0,0.00021917,4]
[365299254,1749586242696,-460.0,0.00021917,4]
[365299255,1749586242705,-2237.41,0.00021917,4]
[365299256,1749586242715,-460.0,0.00021917,4]
[365299257,1749586242724,-184.56971086,0.00021917,4]
[365299263,1749586242895,-275.43028914,0.00021917,4]
[365299265,1749586242907,-578.73,0.00021917,4]
[365299266,1749586242917,-40.88694822,0.00021917,4]
[365299267,1749586242929,-419.11305178,0.00021917,4]
[365299268,1749586242938,-460.0,0.00021917,4]
[365299269,1749586242948,-460.0,0.00021917,4]
[365299270,1749586242957,-460.0,0.00021917,4]
[365299271,1749586242966,-460.0,0.00021917,4]
[365299272,1749586242976,-460.0,0.00021917,4]
[365299273,1749586242985,-460.0,0.00021917,4]
[365299274,1749586242994,-460.0,0.00021917,4]
[365299275,1749586243004,-549.19,0.00021917,4]
[365299276,1749586243013,-460.0,0.00021917,4]
[365299277,1749586243023,-460.0,0.00021917,4]
[365299278,1749586243032,-260.0,0.00021917,4]
[365299279,1749586243041,-555.45,0.00021917,4]
[365299280,1749586243050,-163.17,0.00021917,4]
[365299281,1749586243060,-460.0,0.00021917,4]
[365299282,1749586243070,-460.0,0.00021917,4]
[365299283,1749586243079,-460.0,0.00021917,2]
[365299284,1749586243088,-2456.03,0.00021917,4]
[365299285,1749586243099,-460.0,0.00021917,4]
[365299286,1749586243108,-400.0,0.00021917,4]
[365299287,1749586243118,-560.44,0.00021917,4]
[365299288,1749586243128,-249.57314598,0.00021917,4]
[365299289,1749586243138,-460.0,0.00021917,4]
[365299290,1749586243149,-592.42,0.00021917,4]
[365299291,1749586243159,-2737.32,0.00021917,4]
[365299292,1749586243169,-460.0,0.00021917,4]
[365299293,1749586243179,-1837.72,0.00021917,4]
[365299294,1749586243188,-460.0,0.00021917,4]
[365299295,1749586243199,-1958.56,0.00021917,4]
[365299296,1749586243208,-460.0,0.00021917,4]
[365299297,1749586243218,-2244.78,0.00021917,4]
[365299298,1749586243227,-460.0,0.00021917,4]
[365299299,1749586243237,-460.0,0.00021917,4]
[365299300,1749586243246,-460.0,0.00021917,4]
[365299301,1749586243256,-460.0,0.00021917,4]
[365299302,1749586243265,-460.0,0.00021917,4]
[365299303,1749586243281,-460.0,0.00021917,4]
[365299304,1749586243295,-460.0,0.00021917,4]
[365299305,1749586243305,-460.0,0.00021917,4]
[365299306,1749586243316,-2426.17,0.00021917,4]
[365299307,1749586243326,-460.0,0.00021917,4]
[365299308,1749586243336,-460.0,0.00021917,4]
[365299309,1749586243346,-1568.49,0.00021917,4]
[365299310,1749586243474,-380.0,0.00021917,4]
[365299311,1749586243484,-460.0,0.00021917,4]
[365299312,1749586243493,-460.0,0.00021917,4]
[365299313,1749586243503,-726.64,0.00021917,4]
[365299314,1749586243513,-110.43725701,0.00021917,4]
[365299315,1749586243526,-349.56274299,0.00021917,4]
[365299316,1749586243536,-1468.13,0.00021917,4]
[365299317,1749586243545,-142.30725701,0.00021917,4]
[365299318,1749586244195,-375.49050682,0.00020995,2]
[365299319,1749586244209,-787.54660895,0.00020995,2]
[365299320,1749586244220,-504.92,0.00021085,10]
[365299321,1749586244230,-1163.03711577,0.00021347,2]
[365299322,1749586244240,-126.46423751,0.00021917,4]
[365299323,1749586244249,-598.13,0.00021917,4]
[365299324,1749586244259,-420.0,0.00021917,4]
[365299325,1749586244269,-308.33354368,0.00021917,4]
[365299326,1749586244278,-460.0,0.00021917,4]
[365299327,1749586244289,-1004.22249463,0.00021921,2]
[365299328,1749586244299,-612.12485331,0.00021921,2]
[365299329,1749586244308,-1000.0,0.00021921,2]
[365299330,1749586244318,-1000.0,0.00021921,2]
[365299331,1749586244327,-1015.0,0.00021925,2]
[365299332,1749586244337,-500.0,0.00021973,2]
[365299333,1749586244348,-3186.68282321,0.00021997,2]
[365299334,1749586244358,-500.0,0.00021997,2]
[365299335,1749586244367,-3186.68282321,0.00021997,2]
[365299336,1749586244376,-3186.68282321,0.00021997,2]
[365299337,1749586244386,-3186.68282321,0.00021997,2]
[365299338,1749586244396,-3186.68282321,0.00021997,2]
[365299339,1749586244405,-500.0,0.00021997,2]
[365299340,1749586244415,-3186.68282321,0.00021997,2]
[365299341,1749586244424,-3186.68282321,0.00021997,2]
[365299342,1749586244434,-500.0,0.00021997,2]
[365299343,1749586244443,-500.0,0.00021997,2]
[365299344,1749586244452,-3186.68282321,0.00021997,2]
[365299345,1749586244461,-3186.68282321,0.00021997,2]
[365299346,1749586244470,-327.3454496,0.00021997,2]
[365299347,1749586244480,-3186.68282321,0.00021997,2]
[365299348,1749586244491,-3186.68282321,0.00021997,2]
[365299349,1749586244500,-3186.68282321,0.00021997,2]
[365299350,1749586244509,-3186.68282321,0.00021997,2]
[365299351,1749586244519,-3186.68282321,0.00021997,2]
[365299352,1749586244528,-3186.68282321,0.00021997,2]
[365299353,1749586244537,-3186.68282321,0.00021997,2]
[365299354,1749586244547,-3186.68282321,0.00021997,2]
[365299355,1749586244556,-3186.68282321,0.00021997,2]
[365299356,1749586244565,-3186.68282321,0.00021997,2]
[365299357,1749586244575,-3186.68282321,0.00021997,2]
[365299358,1749586244586,-3186.68282321,0.00021997,2]
[365299359,1749586244597,-109728.57,0.00022,7]
[365299360,1749586244607,-186.0,0.00022,2]
[365299361,1749586244616,-842.5625,0.00022,7]
[365299362,1749586244627,-256.0,0.00022,2]
[365299363,1749586244636,-3550.01159571,0.00022003,6]
[365299364,1749586244648,-3000.0,0.000221,2]
[365299365,1749586244660,-3550.01159571,0.00022107,6]
[365299366,1749586244670,-3000.0,0.0002211,2]
[365299367,1749586244679,-3000.0,0.0002212,2]
[365299368,1749586244688,-3642.970967,0.0002213,2]
[365299369,1749586244698,-500.0,0.00022145,2]
[365299370,1749586244708,-387.81,0.00022191,4]
[365299371,1749586244717,-460.0,0.00022191,4]
[365299372,1749586244727,-320.0,0.00022191,4]
[365299373,1749586244737,-380.0,0.00022191,4]
[365299374,1749586244751,-460.0,0.00022191,4]
[365299375,1749586244771,-460.0,0.00022191,4]
[365299376,1749586244783,-460.0,0.00022191,4]
[365299377,1749586244793,-460.0,0.00022191,4]
[365299378,1749586244802,-460.0,0.00022191,4]
[365299379,1749586244812,-460.0,0.00022191,4]
[365299380,1749586244821,-326.66,0.00022191,4]
[365299381,1749586244831,-460.0,0.00022191,4]
[365299382,1749586244840,-460.0,0.00022191,4]
[365299383,1749586244858,-180.94,0.00022191,4]
[365299384,1749586244874,-198.16,0.00022191,4]
[365299385,1749586244883,-460.0,0.00022191,4]
[365299386,1749586244893,-460.0,0.00022191,4]
[365299387,1749586244904,-460.0,0.00022191,4]
[365299388,1749586244914,-312.02,0.00022191,4]
[365299389,1749586244999,-460.0,0.00022191,4]
[365299390,1749586245009,-460.0,0.00022191,4]
[365299391,1749586245018,-745.95,0.00022191,4]
[365299392,1749586245028,-460.0,0.00022191,4]
[365299393,1749586245038,-460.0,0.00022191,4]
[365299394,1749586245047,-460.0,0.00022191,4]
[365299395,1749586245056,-380.0,0.00022191,4]
[365299396,1749586245066,-460.0,0.00022191,4]
[365299397,1749586245075,-460.0,0.00022191,4]
[365299398,1749586245084,-460.0,0.00022191,4]
[365299399,1749586245095,-460.0,0.00022191,4]
[365299400,1749586245105,-460.0,0.00022191,4]
[365299401,1749586245114,-460.0,0.00022191,4]
[365299402,1749586245123,-606.89,0.00022191,4]
[365299403,1749586245133,-460.0,0.00022191,4]
[365299404,1749586245142,-460.0,0.00022191,4]
[365299405,1749586245153,-230.58584117,0.00022191,4]
[365299406,1749586245163,-460.0,0.00022191,4]
[365299407,1749586245172,-460.0,0.00022191,4]
[365299408,1749586245181,-261.40210787,0.00022191,4]
[365299409,1749586245191,-460.0,0.00022191,4]
[365299410,1749586245200,-460.0,0.00022191,4]
[365299411,1749586245209,-460.0,0.00022191,4]
[365299412,1749586245218,-460.0,0.00022191,4]
[365299413,1749586245228,-653.4,0.00022191,4]
[365299414,1749586245238,-460.0,0.00022191,4]
[365299415,1749586245247,-250.0,0.00022191,4]
[365299416,1749586245256,-460.0,0.00022191,4]
[365299417,1749586245267,-495.26,0.00022191,4]
[365299418,1749586245276,-460.0,0.00022191,4]
[365299419,1749586245285,-460.0,0.00022191,4]
[365299420,1749586245295,-460.0,0.00022191,4]
[365299421,1749586245304,-350.0,0.00022191,4]
[365299422,1749586245313,-310.0,0.00022191,4]
[365299423,1749586245323,-460.0,0.00022191,4]
[365299424,1749586245332,-460.0,0.00022191,4]
[365299425,1749586245342,-2237.41,0.00022191,4]
[365299426,1749586245351,-460.0,0.00022191,4]
[365299427,1749586245361,-460.0,0.00022191,4]
[365299428,1749586245370,-578.73,0.00022191,4]
[365299429,1749586245379,-460.0,0.00022191,4]
[365299430,1749586245388,-460.0,0.00022191,4]
[365299431,1749586245399,-460.0,0.00022191,4]
[365299432,1749586245408,-460.0,0.00022191,4]
[365299433,1749586245418,-315.8869076,0.00022191,4]
[365299434,1749586245427,-460.0,0.00022191,4]
[365299435,1749586245437,-460.0,0.00022191,4]
[365299436,1749586245447,-460.0,0.00022191,4]
[365299437,1749586245456,-549.19,0.00022191,4]
[365299438,1749586245465,-460.0,0.00022191,4]
[365299439,1749586245475,-460.0,0.00022191,4]
[365299440,1749586245484,-555.45,0.00022191,4]
[365299441,1749586245494,-460.0,0.00022191,4]
[365299442,1749586245503,-460.0,0.00022191,4]
[365299443,1749586245512,-460.0,0.00022191,2]
[365299444,1749586245522,-2456.03,0.00022191,4]
[365299445,1749586245532,-460.0,0.00022191,4]
[365299446,1749586245543,-460.0,0.00022191,4]
[365299447,1749586245552,-592.42,0.00022191,4]
[365299448,1749586245562,-2737.32,0.00022191,4]
[365299449,1749586245571,-460.0,0.00022191,4]
[365299450,1749586245583,-1837.72,0.00022191,4]
[365299451,1749586245593,-460.0,0.00022191,4]
[365299452,1749586245602,-1958.56,0.00022191,4]
[365299453,1749586245612,-460.0,0.00022191,4]
[365299454,1749586245623,-2244.78,0.00022191,4]
[365299455,1749586245632,-460.0,0.00022191,4]
[365299456,1749586245642,-289.67,0.00022191,4]
[365299457,1749586245652,-460.0,0.00022191,4]
[365299458,1749586245663,-460.0,0.00022191,4]
[365299459,1749586245674,-460.0,0.00022191,4]
[365299460,1749586245683,-460.0,0.00022191,4]
[365299461,1749586245692,-460.0,0.00022191,4]
[365299462,1749586245702,-265.99,0.00022191,4]
[365299463,1749586245712,-2426.17,0.00022191,4]
[365299464,1749586245721,-460.0,0.00022191,4]
[365299465,1749586245731,-460.0,0.00022191,4]
[365299466,1749586245741,-1568.49,0.00022191,4]
[365299467,1749586245750,-460.0,0.00022191,4]